Cogmind - Beta 12 @@@ ROGUE MODE // 2023.11.06 @ 17:05:32 Player: Figgis Result: Destroyed by 8R-AWN with 8R-AWN's Boregun Performance ------------- Evolutions (1) 500 Regions Visited (5) 1000 Robots Destroyed (26) 130 Value Destroyed (504) 504 Prototype IDs (24) 480 Alien Tech Used (0) 0 Bonus (300) 300 TOTAL SCORE: 2914 Bonus ------- Aligned with FarCom 300 Cogmind --------- Core Integrity 0/400 Matter 121/300 Energy 39/100 System Corruption 0% Temperature Cool (0) Movement Core (700) Ox13 Location -9/Exiles Parts ------- > --- POWER (1) -------- (None) > --- PROPULSION (3) --- (None) > --- UTILITY (3) ------ High-capacity Storage Unit Improved Targeting Computer > --- WEAPON (2) ------- Advanced Beam Rifle > --- INVENTORY (20) --- Large Storage Unit Supersonic Drone Bay (1/1) Field Lobotomy Kit (3) Longsword +1 Blade Trap Blade Trap Blade Trap Peak State ------------ > --- POWER ------------ Improved Ion Engine > --- PROPULSION ------- Aluminum Leg Aluminum Leg Aluminum Leg > --- UTILITY ---------- High-capacity Storage Unit Improved Targeting Computer > --- WEAPON ----------- Heavy Assault Rifle Field Lobotomy Kit > --- INVENTORY -------- Ion Engine Ion Engine Large Storage Unit Supersonic Drone Bay Medium Laser Advanced Beam Rifle Advanced Beam Rifle Heavy Assault Rifle Shotgun Longsword +1 Blade Trap Blade Trap Blade Trap [Rating: 23] Favorites ----------- Power Ion Engine Engine Ion Engine Propulsion Aluminum Leg Leg Aluminum Leg Utility Large Storage Unit Device Shield Generator Storage Large Storage Unit Processor Targeting Computer Weapon Medium Laser Energy Gun Medium Laser Ballistic Gun Heavy Assault Rifle Ballistic Cannon Light Cannon Launcher Rocket Launcher Special Weapon Field Lobotomy Kit Build | -11 -10 -10 -9 -9 -9 ------- Run | Jun Mat Min Mat Min Exi Slots Evolved 2 | . . . 2 . . Power . | . . . . . . Propulsion 1 | . . . 1 . . Utility 1 | . . . 1 . . Weapon . | . . . . . . Parts Attached 37 | 3 11 4 9 . 10 Power 5 | . 1 1 1 . 2 Engine 5 | . 1 1 1 . 2 Core . | . . . . . . Reactor . | . . . . . . Propulsion 8 | 2 2 2 2 . . Treads . | . . . . . . Leg 8 | 2 2 2 2 . . Wheel . | . . . . . . Hover . | . . . . . . Flight . | . . . . . . Utility 8 | . 3 1 3 . 1 Device 2 | . . . 2 . . Storage 4 | . 2 1 . . 1 Processor 2 | . 1 . 1 . . Hackware . | . . . . . . Protection . | . . . . . . Artifact . | . . . . . . Weapon 16 | 1 5 . 3 . 7 Energy Gun 7 | 1 2 . 1 . 3 Energy Cannon . | . . . . . . Ballistic Gun 6 | . 2 . 2 . 2 Ballistic Cannon 1 | . 1 . . . . Launcher 1 | . . . . . 1 Special Weapon 1 | . . . . . 1 Impact Weapon . | . . . . . . Slashing Weapon . | . . . . . . Piercing Weapon . | . . . . . . Special Melee Weapon . | . . . . . . Unidentified Prototypes 1 | . . . 1 . . Parts Lost 18 | . . 3 2 . 13 Power 4 | . . 1 . . 3 Propulsion 6 | . . 2 1 . 3 Utility 2 | . . . 1 . 1 Weapon 6 | . . . . . 6 Highest Loss Streak 13 | . . 2 1 . 13 To Critical Strikes 8 | . . 1 1 . 6 Average Slot Usage (%) 97 | . 98 99 97 100 86 Engine 12 | . 13 13 11 11 9 Leg 28 | . 27 27 31 33 25 Device 4 | . . . 9 11 8 Storage 12 | . 13 14 11 11 11 Processor 12 | . 13 14 11 11 11 Energy Gun 12 | . 14 14 8 11 10 Ballistic Gun 5 | . 10 . 6 11 9 Ballistic Cannon 7 | . 2 14 6 . . Naked Turns . | . . . . . . Heaviest Build 56 | 1 50 50 34 34 56 Greatest Support 30 | 3 20 20 30 30 30 Greatest Overweight (x) 13 | . 3 2 1 1 13 Average Overweight (x) . | . . 1 1 1 1 Largest Inventory Capacity 20 | 5 20 20 15 15 20 Average Capacity 14 | 5 8 15 15 15 17 Most Carried 16 | 5 8 15 15 14 16 Average Carried 11 | 3 5 12 13 14 13 Final Capacity 20 | 5 20 15 15 15 20 Final Carried 14 | 5 8 12 14 14 7 Class Distribution -------------------- 70% | Mutant 29% | Scavenger-Mutant Dominant Class ---------------- Mutant | -10/Materials Mutant | -10/Mines Scavenger-Mutant | -9/Materials Scavenger-Mutant | -9/Mines Scavenger-Mutant | -9/Exiles Resources | -11 -10 -10 -9 -9 -9 ----------- Run | Jun Mat Min Mat Min Exi Matter Collected 621 | 230 72 129 163 27 . Remotely . | . . . . . . Salvage Created 615 | . 266 57 232 50 10 Parts 48 | . 22 6 11 9 . Haulers Intercepted . | . . . . . . Recyclers Shooed . | . . . . . . Parts Field Recycled . | . . . . . . Retrieved Matter . | . . . . . . Parts Self-Destructed . | . . . . . . Prevented . | . . . . . . Kills | -11 -10 -10 -9 -9 -9 ------- Run | Jun Mat Min Mat Min Exi Combat Hostiles Destroyed 24 | . 7 6 4 4 3 Guns 15 | . 7 1 2 4 1 Cannons 7 | . . 5 2 . . AOE 2 | . . . . . 2 Classes Destroyed 5 | . 3 . 1 . 1 Watcher 5 | . 3 . 2 . . Swarmer 14 | . 4 6 . 4 . Grunt 4 | . 3 . 1 . . Sentry 3 | . . . 3 . . Assembled 3 | . . . . . 3 Best Kill Streak 4 | . 3 2 3 4 3 Combat Bots Only 4 | . 3 2 2 4 3 Max Kills in Single Turn 2 | . 1 1 1 1 2 Gunslinging . | . . . . . . Exploded 1 | . . . . . 1 Melee . | . . . . . . Uniques/NPCs Destroyed . | . . . . . . Combat | -11 -10 -10 -9 -9 -9 -------- Run | Jun Mat Min Mat Min Exi Damage Taken 2153 | . 320 182 207 57 1387 Core 531 | . 74 43 29 5 380 Absorbed by Shields 171 | . . . 78 25 68 Core Remaining (%) 76 | 100 . 53 . . . Volleys Fired 111 | . 26 16 21 8 40 Largest 2 | . 2 2 2 2 2 Hottest 122 | . 70 85 85 84 122 Shots Fired 207 | . 52 32 41 16 66 Gun 176 | . 52 16 31 16 61 Cannon 26 | . . 16 10 . . Launcher 3 | . . . . . 3 Special 2 | . . . . . 2 Kinetic 101 | . 26 16 22 8 29 Thermal 101 | . 26 16 19 8 32 Explosive 3 | . . . . . 3 Electromagnetic . | . . . . . . Robot Hit Streak 14 | . 14 5 11 3 10 Robot Miss Streak 3 | . 2 3 3 2 3 Penetration Max . | . . . . . . Secondary Targets 2 | . 2 . . . . Max Gunslinging Chain 1 | . 1 . . . . Shots Hit Robots 138 | . 37 18 26 9 48 Core Hits 53 | . 18 6 10 4 15 Critical Kills . | . . . . . . Critical Parts Destroyed . | . . . . . . Critical Strikes 5 | . 1 . 2 . 2 Burn 5 | . 1 . 2 . 2 Melee Attacks . | . . . . . . Impact . | . . . . . . Slashing . | . . . . . . Piercing . | . . . . . . Sneak Attacks . | . . . . . . Combat Hostiles . | . . . . . . Follow-up Attacks . | . . . . . . Damage Inflicted 2474 | . 414 278 489 172 1121 Guns 1888 | . 414 134 355 172 813 Cannons 278 | . . 144 134 . . Explosions 308 | . . . . . 308 Melee . | . . . . . . Ramming . | . . . . . . Kinetic 897 | . 121 144 237 62 333 Thermal 1269 | . 293 134 252 110 480 Explosive 308 | . . . . . 308 Electromagnetic . | . . . . . . Impact . | . . . . . . Slashing . | . . . . . . Piercing . | . . . . . . Highest Corruption . | . . . . . . Average Corruption . | . . . . . . Corruption Purged . | . . . . . . Corruption Blocked . | . . . . . . Overload Shots . | . . . . . . Overflow Damage 11 | . . . . . 11 Projectiles . | . . . . . . Explosions 11 | . . . . . 11 Melee . | . . . . . . Knockbacks 1 | . . . 1 . . Impact . | . . . . . . Kinetic 1 | . . . 1 . . Secondary . | . . . . . . Self-Inflicted Damage 31 | . . . . . 31 Shots 1 | . . . . . 1 Rammed . | . . . . . . Targets Rammed . | . . . . . . Kicked . | . . . . . . Crushed . | . . . . . . Highest Temperature 266 | . 120 81 106 144 266 Average Temperature 63 | . 44 36 35 72 127 Received Heat Transfer 190 | . 93 . 40 . 57 Siege Activations . | . . . . . . Robots Corrupted . | . . . . . . Combat Hostiles . | . . . . . . Parts Fried . | . . . . . . Impact Corruptions . | . . . . . . Robots Melted . | . . . . . . Combat Hostiles . | . . . . . . Parts Melted 2 | . 1 . 1 . . Heat Transferred 2361 | . 888 370 666 185 252 Parts Sabotaged . | . . . . . . Parts Stolen . | . . . . . . Parts Stripped . | . . . . . . Power Chain Reactions . | . . . . . . Missiles Intercepted . | . . . . . . Alert | -11 -10 -10 -9 -9 -9 ------- Run | Jun Mat Min Mat Min Exi Peak Influence 162 | . 162 75 102 91 . Initial 1 | . . . . 1 . Average 39 | . 89 11 32 76 . Maximum Alert Level . | . . . . . . Low Security (%) 100 | 100 100 100 100 100 . Level 1 . | . . . . . . Level 2 . | . . . . . . Level 3 . | . . . . . . Level 4 . | . . . . . . Level 5 . | . . . . . . High Security . | . . . . . . Max Security . | . . . . . . Squads Dispatched 1 | . 1 . . . . Investigation . | . . . . . . Extermination . | . . . . . . Reinforcement 1 | . 1 . . . . Assault . | . . . . . . Garrison . | . . . . . . Intercept . | . . . . . . Searches Triggered . | . . . . . . Construction Impeded . | . . . . . . Haulers Reinforced . | . . . . . . Active Scanning Responses . | . . . . . . Cargo Convoy Interrupts . | . . . . . . Stealth | -11 -10 -10 -9 -9 -9 --------- Run | Jun Mat Min Mat Min Exi Distress Signals 1 | . . . 1 . . Communications Jammed . | . . . . . . Distress Signals . | . . . . . . Times Spotted 48 | . 16 8 12 4 8 Peak Tracking Total 9 | . 5 3 3 4 9 Tactical Retreats 3 | . 2 1 . . . Traps | -11 -10 -10 -9 -9 -9 ------- Run | Jun Mat Min Mat Min Exi Traps Triggered 3 | . 3 . . . . Indirectly . | . . . . . . Trap Hack Attempts . | . . . . . . Triggered . | . . . . . . Disarmed . | . . . . . . Reprogrammed . | . . . . . . Reused . | . . . . . . Traps Extracted . | . . . . . . Installed 2 | . . . . . 2 Triggered . | . . . . . . Most Traps Carried 5 | . . 5 5 5 5 Machines | -11 -10 -10 -9 -9 -9 ---------- Run | Jun Mat Min Mat Min Exi Machines Disabled 4 | . . . . . 4 Max in Single Turn 2 | . . . . . 2 Machines Repaired . | . . . . . . Machines Sabotaged . | . . . . . . Overloaded Fab Kills . | . . . . . . Hacking | -11 -10 -10 -9 -9 -9 --------- Run | Jun Mat Min Mat Min Exi Machines Accessed 12 | . 7 . 4 . 1 Terminals 11 | . 7 . 4 . . Fabricators . | . . . . . . Repair Stations . | . . . . . . Recycling Units . | . . . . . . Scanalyzers . | . . . . . . Garrison Access . | . . . . . . Total Hacks 33 | . 20 . 12 . 1 Successful 14 | . 10 . 3 . 1 Failed 18 | . 9 . 9 . . Catastrophic 1 | . . . 1 . . Database Lockouts 1 | . 1 . . . . Manual 31 | . 20 . 10 . 1 Terminals 32 | . 20 . 12 . . Fabricators . | . . . . . . Repair Stations . | . . . . . . Recycling Units . | . . . . . . Scanalyzers . | . . . . . . Garrison Access . | . . . . . . Terminal Hacks 9 | . 6 . 2 . 1 Robot Analysis 5 | . 4 . 1 . . Dispatch Records 1 | . . . 1 . . Hauler Manifests 1 | . 1 . . . . Zone Layout 1 | . 1 . . . . EX-Prototype ID Bank 1 | . . . . . 1 Fabricator Hacks . | . . . . . . Repair Station Hacks . | . . . . . . Recycling Unit Hacks . | . . . . . . Scanalyzer . | . . . . . . Garrison Access Hacks . | . . . . . . Unauthorized Hacks 5 | . 4 . 1 . . Terminals 5 | . 4 . 1 . . Botnet 5 | . 4 . 1 . . Fabricators . | . . . . . . Repair Stations . | . . . . . . Recycling Units . | . . . . . . Scanalyzers . | . . . . . . Garrison Access . | . . . . . . Data Cores Recovered . | . . . . . . Used . | . . . . . . Hacking Detections 11 | . 7 . 4 . . Full Trace Events . | . . . . . . Feedback Events . | . . . . . . Feedback Blocked . | . . . . . . Robot Schematics Acquired . | . . . . . . Robots Built . | . . . . . . Authchips . | . . . . . . Time . | . . . . . . Total Robot Build Rating . | . . . . . . Part Schematics Acquired . | . . . . . . Parts Built . | . . . . . . Authchips . | . . . . . . Time . | . . . . . . Total Part Build Rating . | . . . . . . Parts Repaired . | . . . . . . Time . | . . . . . . Parts Recycled . | . . . . . . Recycled Matter . | . . . . . . Retrieved Matter . | . . . . . . Retrieved Components . | . . . . . . Parts Scanalyzed . | . . . . . . Part Schematics Acquired . | . . . . . . Parts Damaged . | . . . . . . Bothacking | -11 -10 -10 -9 -9 -9 ------------ Run | Jun Mat Min Mat Min Exi Used RIF Installer . | . . . . . . Robots Hacked . | . . . . . . Non-combat . | . . . . . . Combat . | . . . . . . Robot Hacks Applied . | . . . . . . Relay Couplers Released . | . . . . . . Fabnet Peak Effective % . | . . . . . . Robots Rewired . | . . . . . . Allies Hacked . | . . . . . . Hacks Repelled . | . . . . . . Allies | -11 -10 -10 -9 -9 -9 -------- Run | Jun Mat Min Mat Min Exi Total Allies 2 | . . . . . 2 Largest Group 2 | . . . . . 2 Highest-Rated Group 17 | . . . . . 17 Highest-Rated Ally 9 | . . . . . 9 Total Orders . | . . . . . . Ally Attacks 10 | . . . . . 10 Total Damage 85 | . . . . . 85 Kills . | . . . . . . Allies Corrupted . | . . . . . . Allies Melted . | . . . . . . Field Lobotomies 2 | . . . . . 2 Intel | -11 -10 -10 -9 -9 -9 ------- Run | Jun Mat Min Mat Min Exi Robot Analysis Total 5 | . 4 . 1 . . Derelict Logs Recovered 1 | . . 1 . . . Drone Launches . | . . . . . . Drone Recoveries . | . . . . . . Exploration | -11 -10 -10 -9 -9 -9 ------------- Run | Jun Mat Min Mat Min Exi Turns Passed 4094 | 35 816 1448 1051 241 503 Spaces Moved 2094 | 37 567 694 492 115 189 Core 80 | 37 42 . . . 1 Treads . | . . . . . . Legs 2014 | . 525 694 492 115 188 Wheels . | . . . . . . Hover . | . . . . . . Flight . | . . . . . . Fastest Speed 50 | 50 50 190 190 190 190 Average Speed 170 | 50 120 194 190 190 192 Slowest Speed 700 | 50 260 260 190 190 700 Overloaded Moves . | . . . . . . Propulsion Burnouts . | . . . . . . Robots Hopped . | . . . . . . Cave-ins Triggered . | . . . . . . Exploration Rate (%) 49 | 4 94 96 32 31 39 Regions Visited 5 Branch Regions 3 Pre-discovered Areas 2 | . . 2 . . . Known Exits Taken . | . . . . . . Unknown Exits Taken 5 | 1 1 1 1 1 . Scrap Searched 3 | . . 3 . . . Spaces Dug . | . . . . . . Terrain Destroyed 11 | . . . . . 11 Melee . | . . . . . . Projectile . | . . . . . . AOE 11 | . . . . . 11 Terrain Rammed . | . . . . . . Walls Destroyed . | . . . . . . Machines Disabled . | . . . . . . Actions | -11 -10 -10 -9 -9 -9 --------- Run | Jun Mat Min Mat Min Exi Total 2419 | 52 653 762 568 122 262 Wait 138 | 6 41 40 37 . 14 Move 2089 | 36 566 693 491 114 189 Hop . | . . . . . . Pick Up 31 | 7 6 8 7 . 3 Fast Attach 8 | 1 7 . . . . Attach 19 | 2 2 3 4 . 8 Detach 1 | . . . . . 1 Swap 10 | . 2 1 5 . 2 Drop 10 | . 3 1 3 . 3 Fire 111 | . 26 16 21 8 40 Melee . | . . . . . . Ram . | . . . . . . Kick . | . . . . . . Crush . | . . . . . . Escape Stasis . | . . . . . . Rewire . | . . . . . . Trap 2 | . . . . . 2 Miscellaneous . | . . . . . . Route ------- -11/Junkyard -10/Materials (discovered 4 exits: *Mat x3 / [*Min]) -10/Mines (discovered 2 exits: *Mat x2) -9/Materials (discovered 2 exits: [*Min] / [*Sto]) -9/Mines (discovered 2 exits: [*Mat] / *Exi) -9/Exiles History --------- Turn | Location | Event 11 | -11/Junkyard | Discovered new exit (range 16) 36 | -11/Junkyard | Entered Materials 183 | -10/Materials | Discovered new exit (range 12) 240 | -10/Materials | Discovered new exit (range 13) 310 | -10/Materials | Build established: Mutant 423 | -10/Materials | Discovered new exit (range 13) 552 | -10/Materials | Central database locked down 752 | -10/Materials | Discovered new exit (range 4) 852 | -10/Materials | Entered Mines 853 | -10/Mines | Learned location of Storage (-9) 985 | -10/Mines | Received a Rocket Launcher from a helpful Derelict 1133 | -10/Mines | Discovered new exit (range 11) 1199 | -10/Mines | Found a hidden stash of uninstalled traps 1468 | -10/Mines | Discovered new exit (range 5) 2300 | -10/Mines | Entered Materials 2300 | -9/Materials | Evolved 2 slots: Propulsion x1, Utility x1 2745 | -9/Materials | Discovered new exit (range 12) 3043 | -9/Materials | Build established: Scavenger-Mutant 3090 | -9/Materials | Discovered new exit (range 5) 3351 | -9/Materials | Entered Mines 3365 | -9/Mines | Met a Derelict bent on vengeance 3378 | -9/Mines | Discovered new exit (range 15) 3578 | -9/Mines | Assembled infested the area 3583 | -9/Mines | Assisted by a Guerilla fighting off Assembled 3584 | -9/Mines | Deemed a non-threat by the Exiles lab entrance 3584 | -9/Mines | Discovered new exit (range 5) 3592 | -9/Mines | Entered Exiles 3636 | -9/Exiles | Met 8R-AWN 3672 | -9/Exiles | Met EX-HEX 3722 | -9/Exiles | Met EX-BIN 3744 | -9/Exiles | Aligned with FarCom system 3746 | -9/Exiles | Given EX-Vault access code 3790 | -9/Exiles | Opened EX-Vault 3805 | -9/Exiles | Found Longsword +1 3812 | -9/Exiles | Found Field Lobotomy Kit 3819 | -9/Exiles | Found Supersonic Drone Bay 3862 | -9/Exiles | Warned to stay clear of 0b10 Research branches 3952 | -9/Exiles | Warned about trapping Exiles lab 3956 | -9/Exiles | Attacked by the Exiles 3971 | -9/Exiles | Assimilated as-52177 with FLK Orb 3975 | -9/Exiles | Assimilated as-18278 with FLK Orb 4008 | -9/Exiles | Core integrity fell below 50% 4071 | -9/Exiles | Core integrity fell below 20% 4092 | -9/Exiles | Lost 13 parts (3p3n1u6w) 4095 | -9/Exiles | Destroyed by 8R-AWN with 8R-AWN's Boregun Last Messages --------------- 04023_ HV Slug penetrates Wall. 04023_ Penetrated by HV Slug. 04036_ Ion Engine destroyed. 04040_ Penetrated by HV Slug. 04044_ Critical hit (Destroy). 04044_ Ion Engine destroyed. 04049_ Penetrated by HV Slug. 04052_ 8R-AWN suffers critical hit (Burn). 04053_ Penetrated by HV Slug. 04055_ 8R-AWN suffers critical hit (Burn). 04057_ Penetrated by HV Slug. 04057_ Adv. Beam Rifle destroyed. 04057_ Penetrated by HV Slug. 04061_ Critical hit (Destroy). 04061_ Med. Laser destroyed. 04066_ Penetrated by HV Slug. 04083_ HV Slug penetrates Wall. 04083_ Penetrated by HV Slug. 04088_ The unstable cave ceiling collapses. 04091_ Penetrated by HV Slug. Map ----- +----------------------------------------------------+ | """#????????????????????????????????????? | | """#????????????????????????????????????? | | """#????????????????????????????????????? | | """"????????????????????????????????????? | | """#????????????????????????????????????? | | "X" """"????????????????????????????????????? | | """ #????????????????????????????????????? | | """""""""#????????????????????????????????????? | | ###########????????????????????????????????????? | | #??????????????????????????????????????????????? | | #??????????????????????????????????????????????? | | ##?????????????????????????????????????????????? | | ##???###########??????????????????????????????? | | #####"""""""""##?????????????????????????????? | | " """ """"##????????????????????????????? | | "" " #????????????????????????????? | | " """#????????????????????????????? | | " "#???????????#####????????????? | | " "##?????????##" #????????????? | | ""###???????#" #????????????? | | """#??????##" ##???????????? | | "" "#????### ###????????## | | ###""" ##???# ########## | | ??##""" ##### #""""## | | ???#"""" ### * | | ???#"" @ g ## * | | ????""" #### | | ???? ""#?#"""""#### | | ???? ""##?#######??#### | | ??? % # ####??????????????#### | | ??? ##????????????????????? | | ????? ##?????????????????????? | | ?????? % ##??????????????????????? | | ????????" " % ##????????????????????????? | | ?????????????# " " "##?????????????????????????? | | ?????????????##########??????????????????????????? | | ?????????????????????????????????????????????????? | | ?????????????????????????????????????????????????? | | ?????????????????????????????????????????????????? | | ?????????????????????????????????????????????????? | | ?????????????????????????????????????????????????? | | ?????????????????????????????????????????????????? | | ?????????????????????????????????????????????????? | | ?????????????????????????????????????????????????? | | ?????????????????????????????????????????????????? | | ?????????????????????????????????????????????????? | | ?????????????????????????????????????????????????? | | ?????????????????????????????????????????????????? | | ?????????????????????????????????????????????????? | | ?????????????????????????????????????????????????? | +----------------------------------------------------+ Best States ------------- Heat Dissipation 28 Energy Generation 12 Energy Capacity 265 Matter Stores 300 Matter Capacity 300 Sight Range 16 Robot Scan Range 14 Terrain Scan Density 10 Evasion (%) 55 Targeting Accuracy 6 Item Schematics ----------------- None Robot Schematics ------------------ None Fabricated ------------ Nothing Alien Tech Used ----------------- None Achievements -------------- None Challenges ------------ None Game ------ Seed RocketChargeMatter Manual? 0 Play Time 00:18:01 Cumulative 103.3 hours Start 2023.11.06 @ 16:48:04 End 2023.11.06 @ 17:05:32 Sessions 1 Manual Loads 0 Difficulty Rogue Special Mode None Game No. 172 Rogue 169 Adventurer 3 Explorer 0 Win Type - Total 0 Types 0/0/0/0/0/0/0/0/0 Lore% 42 Gallery% 58 Achievement% 41 Wizard Run 0 Options --------- ASCII 0 Keyboard 0 Movement Mouse Keybinds 0 Fullscreen 2 Font 18/SmallcapsGlow Map View 76x50 Tactical HUD 1 Map Filters NONE Filters NONE Steam 1 RUN: c1b573ee-39bd-498e-9be0-b8187646f038